fUST/lending_fUST_20250407
["ID","MTS","AMOUNT","RATE_DAILY","PERIOD"]
[357378853,1744024232308,-200.0,0.0003817,51]
[357378854,1744024232318,-205.56895916,0.00038343,2]
[357378855,1744024232605,-161.35769188,0.00038343,2]
[357378856,1744024232615,-253.954,0.00038382,7]
[357378857,1744024232625,-249.19142667,0.00038432,7]
[357378858,1744024232634,-160.0,0.00038483,2]
[357378859,1744024232643,-679.56509734,0.00038483,2]
[357378860,1744024232653,-419.36665037,0.00038483,2]
[357378862,1744024232662,-6368.05589744,0.00038573,112]
[357378864,1744024232671,-156.38,0.000386,31]
[357378865,1744024232681,-156.38,0.000386,31]
[357378866,1744024232690,-156.38,0.000386,31]
[357378867,1744024232699,-156.38,0.000386,31]
[357378868,1744024232709,-156.38,0.000386,31]
[357378869,1744024232719,-156.38,0.000386,31]
[357378870,1744024232729,-25138.8398002,0.00038609,2]
[357378871,1744024232742,-414.1104975,0.00038609,2]
[357378872,1744024238335,-14712.72999206,0.00038609,2]
[357378873,1744024238345,-468.471,0.00038609,52]
[357378874,1744024238354,-166.0,0.00038609,14]
[357378875,1744024238364,-188.36932548,0.00038609,14]
[357378876,1744024238373,-357.0,0.00038609,14]
[357378877,1744024238384,-500.0,0.000387,120]
[357378878,1744024238393,-260.0,0.00038739,5]
[357378879,1744024238403,-150.48745413,0.00038789,2]
[357378880,1744024238412,-151.0,0.000388,14]
[357378881,1744024238422,-185.17044561,0.00038873,5]
[357378882,1744024238431,-500.0,0.00038873,5]
[357378883,1744024238441,-500.0,0.00038873,5]
[357378885,1744024238450,-521.00103121,0.00038873,5]
[357378886,1744024238459,-500.0,0.00038873,5]
[357378887,1744024238468,-500.0,0.00038873,5]
[357378888,1744024238478,-500.0,0.00038873,5]
[357378889,1744024238487,-151.0,0.00038876,2]
[357378890,1744024238497,-200.0,0.00038876,2]
[357378891,1744024238506,-10396.01116751,0.00038878,3]
[357378928,1744024240447,-64664.10916749,0.00038878,3]
[357378929,1744024240456,-302.02173072,0.00038878,3]
[357378930,1744024240465,-414.03096167,0.00038887,15]
[357378931,1744024240474,-12149.62578642,0.00038888,25]
[357378932,1744024240489,-312.23138267,0.00038888,25]
[357379145,1744024243382,-46888.26723629,0.00038888,25]
[357379188,1744024246626,-291.679,0.00038888,25]
[357379189,1744024246642,-1493.79999999,0.00038888,25]
[357379264,1744025432345,-500.0,0.00034411,120]
[357379265,1744025432355,-400.0,0.00034864,2]
[357379266,1744025432364,-8898.089831,0.00034865,2]
[357379285,1744025438431,-591.96809604,0.00034311,2]
[357379286,1744025438441,-38887.6765783,0.00034865,2]
[357379287,1744025438451,-1494.13190323,0.000349,12]
[357379288,1744025438460,-175.404753,0.00035029,2]
[357379289,1744025438473,-519.02262678,0.00035441,120]
[357379290,1744025438483,-253.482961,0.0003589,2]
[357379291,1744025438493,-500.0,0.00036441,120]
[357379292,1744025438502,-169.67,0.00036682,2]
[357379293,1744025438511,-14856.66790361,0.00036692,2]
[357379497,1744025443530,-160.0,0.00036653,2]
[357379498,1744025443540,-10043.33209639,0.00036692,2]
[357379499,1744025443551,-1494.13190296,0.00036969,13]
[357379500,1744025443561,-156.23782,0.00037332,25]
[357379501,1744025443571,-200.0,0.00037387,2]
[357379502,1744025443580,-500.0,0.00037441,120]
[357379504,1744025443590,-156.41,0.000375,31]
[357379506,1744025443601,-156.41,0.000375,31]
[357379508,1744025443610,-473.392,0.000376,49]
[357379510,1744025443620,-932.92310206,0.00037709,4]
[357379684,1744026632520,-300.0,0.0002754,2]
[357379690,1744026633033,-13287.99150777,0.00027541,15]
[357379692,1744026633044,-656.29837822,0.00031583,2]
[357379694,1744026633055,-1703.47763561,0.000319,10]
[357379696,1744026633066,-500.0,0.00032917,7]
[357379698,1744026633077,-700.0,0.00033426,7]
[357379699,1744026633088,-1703.47763551,0.00034072,11]
[357379700,1744026633099,-5438.1,0.00034864,2]
[357379701,1744026633110,-5438.1,0.00034864,2]
[357379702,1744026633121,-500.0,0.00035441,120]
[357379703,1744026633131,-240.808812,0.0003589,2]
[357379704,1744026633140,-661.95990226,0.00035919,2]
[357379705,1744026633150,-3820.83353848,0.000362,98]
[357379706,1744026633163,-2702.63189199,0.000362,98]
[357379707,1744026633177,-558.99736835,0.000362,98]
[357379720,1744026639209,-1081.45175339,0.0003589,2]
[357379721,1744026639219,-559.20427812,0.000362,98]
[357379722,1744026639228,-1703.47763551,0.00036245,13]
[357379723,1744026639238,-65.20145,0.0003629,2]
[357379728,1744026640793,-768.2,0.0003629,2]
[357380023,1744027843785,-179.5051856,0.00034265,2]
[357380024,1744027843795,-192.1948144,0.00034863,2]
[357380098,1744027846776,-395.38630184,0.00034863,2]
[357382083,1744028767433,212.252252,0.00013699,2]
[357382166,1744029031791,-2764.73713307,0.000259,6]
[357382168,1744029031801,-574.91,0.0002599,3]
[357382170,1744029031812,-185.36,0.0002599,3]
[357382171,1744029031822,-260.0,0.00025999,2]
[357382173,1744029031834,-29411.90917624,0.00026,3]
[357382174,1744029031904,-2538.68751598,0.00026,3]
[357382175,1744029031916,-2750.0,0.00026,3]
[357382176,1744029031927,-251.6383682,0.00026,3]
[357382177,1744029031937,-4198.3616318,0.00026,2]
[357382206,1744029037903,-556.12,0.0002599,3]
[357382207,1744029037913,-500.0,0.00025999,2]
[357382208,1744029037924,-540.59042123,0.00025999,2]
[357382209,1744029037934,-300.93045099,0.00025999,2]
[357382210,1744029037944,-500.0,0.00025999,2]
[357382211,1744029037954,-500.0,0.00025999,2]
[357382212,1744029037964,-500.0,0.00025999,2]
[357382213,1744029037975,-500.0,0.00025999,2]
[357382214,1744029037986,-500.0,0.00025999,2]
[357382216,1744029037997,-500.0,0.00025999,2]
[357382217,1744029038007,-500.0,0.00025999,2]
[357382219,1744029038017,-500.0,0.00025999,2]
[357382221,1744029038026,-500.0,0.00025999,2]
[357382223,1744029038036,-500.0,0.00025999,2]
[357382226,1744029038046,-300.0,0.00025999,2]
[357382229,1744029038056,-500.0,0.00025999,2]
[357382232,1744029038070,-371.26141868,0.00025999,2]
[357382237,1744029038086,-128.73858132,0.00025999,2]
[357382240,1744029038096,-3397.86391187,0.00026,2]
[357382243,1744029038108,-4490.82020884,0.00026,2]
[357382246,1744029038120,-15484.0,0.00026,2]
[357382249,1744029038134,-139579.2852246,0.00026,2]
[357382252,1744029038144,-783.73948285,0.00026,3]
[357382255,1744029038155,-9000.0,0.00026,30]
[357382258,1744029038165,-2764.73713298,0.00027141,7]
[357382261,1744029038175,-370.72,0.0002736,3]
[357382263,1744029038186,-500.0,0.00027397,2]
[357382265,1744029038196,-500.0,0.00027397,2]
[357382267,1744029038206,-500.0,0.00027397,2]
[357382269,1744029038216,-391.82,0.00027397,2]
[357382271,1744029038226,-500.0,0.00027397,2]
[357382273,1744029038237,-500.0,0.00027397,2]
[357382275,1744029038250,-500.0,0.00027397,2]
[357382278,1744029038260,-500.0,0.00027397,2]
[357382280,1744029038270,-500.0,0.00027397,2]
[357382281,1744029038281,-2764.73713298,0.00028383,7]
[357382284,1744029038292,-2764.73713298,0.00029624,8]
[357382286,1744029038303,-7090.30090165,0.0003,2]
[357382288,1744029038314,-500.0,0.00030289,5]
[357382290,1744029038336,-500.0,0.00030289,5]
[357382292,1744029038346,-500.0,0.00030289,5]
[357382294,1744029038357,-500.0,0.00030289,5]
[357382296,1744029038367,-500.21447099,0.00030289,5]
[357382298,1744029038378,-500.0,0.00030289,5]
[357382300,1744029038389,-327.52066194,0.00030289,5]
[357382302,1744029038399,-158.34596,0.00030487,2]
[357382303,1744029038409,-2764.73713298,0.00030866,9]
[357382305,1744029038420,-151.0,0.0003138,2]
[357382306,1744029038431,-151.0,0.0003138,2]
[357382307,1744029038441,-843.57,0.00031388,3]
[357382308,1744029038451,-476.68,0.00031388,3]
[357382309,1744029038461,-74182.7951678,0.00031389,2]
[357382310,1744029038472,-1692.00810507,0.00031389,2]
[357382311,1744029038483,-562.37,0.00031389,3]
[357382312,1744029038494,-281.18,0.00031389,3]
[357382313,1744029038504,-8139.61872642,0.00031389,2]
[357382314,1744029038514,-200.0,0.000314,120]
[357382315,1744029038525,-191.2786895,0.0003141,2]
[357382317,1744029038535,-151.0,0.0003149,2]
[357382318,1744029038548,-619.988383,0.0003151,7]
[357382319,1744029038559,-619.988383,0.0003151,7]
[357382320,1744029038578,-151.0,0.0003151,7]
[357382321,1744029038588,-151.0,0.0003151,7]
[357382322,1744029038598,-151.0,0.0003151,7]
[357382323,1744029038609,-589.254458,0.0003151,2]
[357382324,1744029038620,-589.254458,0.0003151,2]
[357382325,1744029038631,-151.165071,0.00031518,7]
[357382326,1744029038642,-619.988383,0.00031518,7]
[357382327,1744029038652,-619.988383,0.00031518,7]
[357382328,1744029038663,-151.0,0.00031518,7]
[357382329,1744029038673,-151.0,0.00031518,7]
[357382330,1744029038683,-283.309653,0.00031518,7]
[357382331,1744029038694,-283.309653,0.00031518,7]
[357382332,1744029038704,-283.309653,0.00031518,7]
[357382333,1744029038714,-283.309653,0.00031518,7]
[357382334,1744029038727,-151.0,0.00031518,7]
[357382335,1744029038737,-589.254458,0.00031518,2]
[357382336,1744029038747,-589.254458,0.00031518,2]
[357382337,1744029038759,-151.0,0.00031519,7]
[357382338,1744029038770,-151.706743,0.00031519,7]
[357382339,1744029038779,-151.0,0.00031519,7]
[357382340,1744029038790,-151.0,0.00031519,7]
[357382341,1744029038799,-151.0,0.00031519,7]
[357382342,1744029038809,-419.36665037,0.00031519,3]
[357382343,1744029038824,-1515.7562234,0.0003152,2]
[357382344,1744029038835,-495.84145596,0.00031573,5]
[357382345,1744029038844,-500.0,0.00031573,5]
[357382346,1744029038854,-552.73632071,0.00031573,2]
[357382347,1744029038864,-619.988383,0.00031573,7]
[357382348,1744029038873,-619.988383,0.00031573,7]
[357382349,1744029038883,-151.0,0.00031573,7]
[357382350,1744029038893,-151.0,0.00031573,7]
[357382351,1744029038903,-283.309653,0.00031573,7]
[357382352,1744029038912,-283.309653,0.00031573,7]
[357382353,1744029038922,-151.0,0.00031573,7]
[357382354,1744029038932,-589.254458,0.00031573,2]
[357382355,1744029038941,-589.254458,0.00031573,2]
[357382356,1744029038951,-2764.73713298,0.00032107,10]
[357382357,1744029038961,-500.0,0.00032314,5]
[357382358,1744029038972,-500.0,0.00032314,5]
[357382359,1744029038981,-500.0,0.00032314,5]
[357382360,1744029038990,-500.0,0.00032314,5]
[357382361,1744029039000,-500.0,0.00032314,2]
[357382362,1744029039010,-500.0,0.00032314,2]
[357382363,1744029039021,-500.0,0.00032314,5]
[357382364,1744029039030,-503.59398376,0.00032314,5]
[357382365,1744029039040,-500.0,0.0003252,5]
[357382366,1744029039050,-500.0,0.00032571,5]
[357382367,1744029039059,-500.0,0.00032571,5]
[357382368,1744029039073,-500.0,0.00032571,5]
[357382369,1744029039083,-500.0,0.00032571,5]
[357382370,1744029039093,-500.0,0.00032571,5]
[357382371,1744029039102,-151.0,0.00032642,2]
[357382372,1744029039112,-200.0,0.00032642,2]
[357382373,1744029039121,-24727.5983893,0.00032661,2]
[357382374,1744029039132,-564.00270169,0.00032661,2]
[357382375,1744029039142,-151.0,0.00032662,7]
[357382376,1744029039152,-151.0,0.00032662,7]
[357382377,1744029039162,-151.0,0.00032662,7]
[357382378,1744029039172,-151.0,0.00032662,7]
[357382379,1744029039182,-2564.392306,0.00032671,7]
[357382380,1744029039191,-2564.392306,0.00032671,7]
[357382381,1744029039201,-151.0,0.00032671,7]
[357382382,1744029039210,-151.0,0.00032671,7]
[357382383,1744029039220,-1189.960806,0.00032671,7]
[357382384,1744029039229,-1189.960806,0.00032671,7]
[357382385,1744029039239,-592.527292,0.00032671,7]
[357382386,1744029039248,-592.527292,0.00032671,7]
[357382387,1744029039259,-619.988383,0.00032671,7]
[357382388,1744029039269,-619.988383,0.00032671,7]
[357382389,1744029039278,-151.0,0.00032671,7]
[357382390,1744029039288,-151.0,0.00032671,7]
[357382391,1744029039298,-283.309653,0.00032671,7]
[357382393,1744029039308,-283.309653,0.00032671,7]
[357382395,1744029039323,-200.0034,0.00032671,7]
[357382397,1744029039333,-200.0034,0.00032671,7]
[357382399,1744029039343,-151.0,0.00032671,7]
[357382401,1744029039353,-589.254458,0.00032671,2]
[357382402,1744029039362,-589.254458,0.00032671,2]
[357382403,1744029039372,-783.73948285,0.00032671,7]
[357382404,1744029039381,-150.50311698,0.00032673,5]
[357382405,1744029039391,-500.0,0.00032673,5]
[357382406,1744029039401,-2564.392306,0.00032673,7]
[357382407,1744029039411,-2564.392306,0.00032673,7]
[357382408,1744029039420,-151.0,0.00032673,7]
[357382409,1744029039429,-151.0,0.00032673,7]
[357382410,1744029039439,-170.316298,0.00032673,7]
[357382411,1744029039448,-1189.960806,0.00032673,7]
[357382412,1744029039458,-1189.960806,0.00032673,7]
[357382413,1744029039468,-151.0,0.00032673,7]
[357382414,1744029039478,-592.527292,0.00032673,7]
[357382415,1744029039488,-592.527292,0.00032673,7]
[357382416,1744029039497,-619.988383,0.00032673,7]
[357382417,1744029039506,-619.988383,0.00032673,7]
[357382418,1744029039516,-619.988383,0.00032673,7]
[357382419,1744029039525,-619.988383,0.00032673,7]
[357382420,1744029039534,-151.0,0.00032673,7]
[357382421,1744029039544,-151.0,0.00032673,7]
[357382422,1744029039553,-151.0,0.00032673,7]
[357382423,1744029039563,-212.397565,0.00032673,7]
[357382424,1744029039812,-151.0,0.00032673,7]
[357382425,1744029039829,-151.0,0.00032673,7]
[357382426,1744029039839,-283.309653,0.00032673,7]
[357382427,1744029039850,-283.309653,0.00032673,7]
[357382428,1744029039860,-200.0034,0.00032673,7]
[357382429,1744029039870,-200.0034,0.00032673,7]
[357382430,1744029039880,-151.0,0.00032673,7]
[357382431,1744029039890,-151.0,0.00032673,7]
[357382432,1744029039900,-589.254458,0.00032673,2]
[357382433,1744029039911,-589.254458,0.00032673,2]
[357382434,1744029039921,-589.254458,0.00032673,2]
[357382435,1744029039931,-589.254458,0.00032673,2]
[357382436,1744029039940,-156.587,0.00032697,2]
[357382437,1744029039950,-162.380719,0.00032752,2]
[357382438,1744029039961,-1124.74,0.00032759,3]
[357382439,1744029039971,-562.36,0.00032759,3]
[357382440,1744029039981,-619.988383,0.00032768,7]
[357382441,1744029039991,-619.988383,0.00032768,7]
[357382442,1744029040000,-151.0,0.00032768,7]
[357382443,1744029040010,-283.309653,0.00032768,7]
[357382444,1744029040020,-283.309653,0.00032768,7]
[357382445,1744029040030,-151.0,0.00032768,7]
[357382446,1744029040041,-589.254458,0.00032768,2]
[357382447,1744029040052,-589.254458,0.00032768,2]
[357382448,1744029040063,-24727.5983893,0.00032768,2]
[357382449,1744029040076,-564.00270169,0.00032768,2]
[357382450,1744029040088,-581.72444124,0.00032773,5]
[357382451,1744029040099,-500.34525239,0.00032773,5]
[357382452,1744029040109,-151.0,0.00032773,7]
[357382453,1744029040120,-185.276685,0.00032773,7]
[357382454,1744029040130,-151.0,0.00032773,7]
[357382455,1744029040140,-185.276685,0.00032773,7]
[357382457,1744029040150,-151.0,0.00032773,7]
[357382458,1744029040160,-151.0,0.00032773,7]
[357382459,1744029040170,-151.0,0.00032773,7]
[357382460,1744029040180,-261.441472,0.00032773,7]
[357382463,1744029040190,-460.960957,0.00032773,7]
[357382466,1744029040199,-460.960957,0.00032773,7]
[357382467,1744029040210,-541.63181,0.00032773,7]
[357382468,1744029040220,-541.63181,0.00032773,7]
[357382470,1744029040230,-151.0,0.00032778,7]
[357382472,1744029040239,-151.0,0.00032778,7]
[357382474,1744029040249,-151.0,0.00032778,7]
[357382476,1744029040259,-185.276685,0.00032778,7]
[357382478,1744029040269,-151.0,0.00032778,7]
[357382480,1744029040279,-185.276685,0.00032778,7]
[357382482,1744029040289,-152.473796,0.00032778,7]
[357382484,1744029040299,-152.473796,0.00032778,7]
[357382486,1744029040309,-151.0,0.00032778,7]
[357382488,1744029040322,-151.0,0.00032778,7]
[357382490,1744029040332,-260.182962,0.00032778,7]
[357382492,1744029040342,-460.960957,0.00032778,7]
[357382494,1744029040352,-460.960957,0.00032778,7]
[357382496,1744029040362,-541.63181,0.00032778,7]
[357382498,1744029040372,-541.63181,0.00032778,7]
[357382500,1744029040382,-2564.392306,0.00032778,7]
[357382502,1744029040392,-2564.392306,0.00032778,7]
[357382504,1744029040402,-2564.392306,0.00032778,7]
[357382506,1744029040411,-2564.392306,0.00032778,7]
[357382508,1744029040422,-311.551078,0.00032778,7]
[357382510,1744029040432,-311.551078,0.00032778,7]
[357382512,1744029040442,-151.0,0.00032778,7]
[357382514,1744029040451,-151.0,0.00032778,7]
[357382516,1744029040461,-215.75513,0.00032778,7]
[357382518,1744029040470,-1189.960806,0.00032778,7]
[357382520,1744029040480,-1189.960806,0.00032778,7]
[357382522,1744029040490,-151.0,0.00032778,7]
[357382524,1744029040500,-151.0,0.00032778,7]
[357382526,1744029040510,-592.527292,0.00032778,7]
[357382528,1744029040520,-592.527292,0.00032778,7]
[357382530,1744029040530,-619.988383,0.00032778,7]
[357382532,1744029040542,-619.988383,0.00032778,7]
[357382533,1744029040551,-619.988383,0.00032778,7]
[357382534,1744029040560,-619.988383,0.00032778,7]
[357382535,1744029040574,-619.988383,0.00032778,7]
[357382536,1744029040584,-619.988388,0.00032778,7]
[357382537,1744029040593,-151.0,0.00032778,7]
[357382538,1744029040602,-151.0,0.00032778,7]
[357382539,1744029040612,-151.0,0.00032778,7]
[357382540,1744029040621,-3302.515263,0.00032778,7]
[357382541,1744029040630,-3302.515263,0.00032778,7]
[357382542,1744029040639,-151.0,0.00032778,7]
[357382543,1744029040648,-151.0,0.00032778,7]
[357382544,1744029040658,-276.0,0.00032778,7]
[357382545,1744029040667,-283.309653,0.00032778,7]
[357382546,1744029040677,-283.309653,0.00032778,7]
[357382547,1744029040686,-283.309653,0.00032778,7]
[357382548,1744029040695,-283.309653,0.00032778,7]
[357382549,1744029040705,-283.309653,0.00032778,7]
[357382550,1744029040714,-283.309653,0.00032778,7]
[357382551,1744029040726,-200.0034,0.00032778,7]
[357382552,1744029040737,-200.0034,0.00032778,7]
[357382553,1744029040746,-151.0,0.00032778,7]
[357382554,1744029040756,-151.0,0.00032778,7]
[357382555,1744029040767,-249.127736,0.00032778,7]
[357382556,1744029040777,-589.254458,0.00032778,2]
[357382557,1744029040786,-589.254458,0.00032778,2]
[357382558,1744029040798,-589.254458,0.00032778,2]
[357382559,1744029040807,-589.254458,0.00032778,2]
[357382561,1744029040818,-589.254458,0.00032778,2]
[357382563,1744029040827,-589.254454,0.00032778,2]
[357382565,1744029040836,-11069.7027689,0.00032778,2]
[357382567,1744029040845,-641.40568929,0.00032856,5]
[357382569,1744029040855,-191.27868948,0.00033199,2]
[357382571,1744029040863,-24727.5983893,0.00033205,2]
[357382573,1744029040873,-564.00270169,0.00033205,2]
[357382575,1744029040883,-151.0,0.00033215,14]
[357382577,1744029040892,-279.768286,0.00033215,14]
[357382579,1744029040902,-151.0,0.00033215,14]
[357382581,1744029040911,-185.276685,0.00033215,14]
[357382583,1744029040920,-151.0,0.00033215,14]
[357382585,1744029040930,-185.276685,0.00033215,14]
[357382587,1744029040940,-152.473796,0.00033215,14]
[357382589,1744029040950,-152.473796,0.00033215,14]
[357382591,1744029040960,-151.0,0.00033215,14]
[357382593,1744029040970,-460.960957,0.00033215,14]
[357382595,1744029040979,-460.960957,0.00033215,14]
[357382597,1744029040989,-541.63181,0.00033215,14]
[357382599,1744029040999,-541.63181,0.00033215,14]
[357382601,1744029041008,-2564.392306,0.00033215,14]
[357382603,1744029041017,-2564.392306,0.00033215,14]
[357382605,1744029041027,-311.551078,0.00033215,14]
[357382607,1744029041036,-311.551078,0.00033215,14]
[357382609,1744029041045,-151.0,0.00033215,14]
[357382611,1744029041054,-1189.960806,0.00033215,14]
[357382613,1744029041063,-1189.960806,0.00033215,14]
[357382614,1744029041074,-151.0,0.00033215,14]
[357382615,1744029041084,-592.527292,0.00033215,14]
[357382616,1744029041093,-592.527292,0.00033215,14]
[357382617,1744029041102,-3302.515263,0.00033215,14]
[357382618,1744029041112,-3302.515263,0.00033215,14]
[357382619,1744029041121,-283.309653,0.00033215,14]
[357382620,1744029041131,-283.309645,0.00033215,14]
[357382621,1744029041140,-200.0034,0.00033215,14]
[357382622,1744029041150,-200.0034,0.00033215,14]
[357382623,1744029041160,-19830.8732287,0.00033215,2]
[357382624,1744029041169,-2000.0,0.00033299,4]
[357382625,1744029041179,-2764.73713298,0.00033348,11]
[357382626,1744029041188,-783.73948285,0.00033511,2]
[357382627,1744029041198,-24727.5983893,0.00033535,2]
[357382628,1744029041211,-564.00270169,0.00033535,2]
[357382629,1744029041220,-12527.9349248,0.00033545,2]
[357382630,1744029041230,-160.0,0.00033545,2]
[357382631,1744029041240,-160.0,0.00033545,2]
[357382632,1744029041250,-151.0,0.00033545,14]
[357382633,1744029041259,-151.0,0.00033545,14]
[357382634,1744029041269,-185.276685,0.00033545,14]
[357382635,1744029041279,-185.276685,0.00033545,14]
[357382636,1744029041288,-152.473796,0.00033545,14]
[357382637,1744029041298,-152.473796,0.00033545,14]
[357382638,1744029041307,-151.0,0.00033545,14]
[357382639,1744029041319,-460.960957,0.00033545,14]
[357382640,1744029041330,-460.960957,0.00033545,14]
[357382641,1744029041340,-541.63181,0.00033545,14]
[357382642,1744029041350,-541.63181,0.00033545,14]
[357382643,1744029041360,-2564.392306,0.00033545,14]
[357382644,1744029041370,-2564.392306,0.00033545,14]
[357382645,1744029041380,-311.551078,0.00033545,14]
[357382646,1744029041390,-311.551078,0.00033545,14]
[357382647,1744029041400,-151.0,0.00033545,14]
[357382648,1744029041409,-1189.960806,0.00033545,14]
[357382649,1744029041418,-1189.960806,0.00033545,14]
[357382650,1744029041427,-151.0,0.00033545,14]
[357382651,1744029041437,-592.527292,0.00033545,14]
[357382652,1744029041447,-592.527292,0.00033545,14]
[357382653,1744029041456,-3302.515263,0.00033545,14]
[357382654,1744029041466,-3302.515263,0.00033545,14]
[357382655,1744029041475,-200.0034,0.00033545,14]
[357382656,1744029041485,-200.0034,0.00033545,14]
[357382657,1744029041495,-2000.0,0.00033969,4]
[357382658,1744029041504,-207.4,0.00034011,2]
[357382659,1744029041513,-2764.73713298,0.0003459,12]
[357382660,1744029041523,-2000.0,0.00034639,4]
[357382661,1744029041532,-151.0,0.00034853,14]
[357382662,1744029041542,-151.0,0.00034853,14]
[357382663,1744029041552,-185.276685,0.00034853,14]
[357382664,1744029041561,-185.276685,0.00034853,14]
[357382665,1744029041576,-152.473796,0.00034853,14]
[357382666,1744029041586,-152.473796,0.00034853,14]
[357382667,1744029041596,-460.960957,0.00034853,14]
[357382668,1744029041606,-460.960957,0.00034853,14]
[357382669,1744029041616,-311.551078,0.00034853,14]
[357382670,1744029041626,-311.551078,0.00034853,14]
[357382671,1744029041636,-3302.515263,0.00034853,14]
[357382672,1744029041646,-3302.515263,0.00034853,14]
[357382673,1744029041656,-151.0,0.00034862,14]
[357382674,1744029041671,-152.473796,0.00034862,14]
[357382675,1744029041682,-152.473796,0.00034862,14]
[357382676,1744029041692,-311.551078,0.00034862,14]
[357382677,1744029041701,-311.551078,0.00034862,14]
[357382678,1744029041711,-3302.515263,0.00034862,14]
[357382679,1744029041723,-3302.515263,0.00034862,14]
[357382680,1744029041736,-151.0,0.00034863,14]
[357382681,1744029041749,-151.0,0.00034863,14]
[357382682,1744029041760,-151.0,0.00034863,14]
[357382683,1744029041772,-151.0,0.00034863,14]
[357382684,1744029041783,-151.0,0.00034863,14]
[357382685,1744029041794,-151.0,0.00034863,14]
[357382686,1744029041804,-252.656165,0.00034863,14]
[357382687,1744029041814,-252.656165,0.00034863,14]
[357382688,1744029041828,-667.665761,0.00034863,14]
[357382689,1744029041838,-667.665761,0.00034863,14]
[357382690,1744029041849,-2564.392306,0.00034863,14]
[357382691,1744029041859,-2564.392306,0.00034863,14]
[357382692,1744029041868,-151.0,0.00034863,14]
[357382693,1744029041878,-1189.960806,0.00034863,14]
[357382694,1744029041888,-1189.960806,0.00034863,14]
[357382695,1744029041898,-357.0,0.00034863,7]
[357382696,1744029041908,-357.0,0.00034863,7]
[357382697,1744029041917,-357.0,0.00034863,7]
[357382698,1744029041927,-194.54273449,0.00034863,7]
[357382699,1744029041938,-592.527292,0.00034863,14]
[357382700,1744029041947,-592.527292,0.00034863,14]
[357382701,1744029041957,-200.0034,0.00034863,14]
[357382702,1744029041967,-200.0034,0.00034863,14]
[357382703,1744029041977,-191.27868948,0.00034988,2]
[357382704,1744029041987,-2000.0,0.00035309,4]
[357382705,1744029041997,-215.0738,0.0003538,2]
[357382706,1744029042007,-500.0,0.00035616,7]
[357382707,1744029042018,-165.70995036,0.00035616,7]
[357382708,1744029042029,-1000.0,0.00035769,5]
[357382709,1744029042038,-1000.0,0.00035769,5]
[357382710,1744029042048,-1000.0,0.00035769,5]
[357382711,1744029042058,-2764.73713298,0.00035831,12]
[357382712,1744029042069,-24727.5983893,0.0003588,3]
[357382713,1744029042079,-564.00270169,0.0003588,3]
[357382714,1744029042089,-278.768376,0.0003589,2]
[357382715,1744029042099,-151.0,0.000359,14]
[357382716,1744029042109,-151.0,0.000359,14]
[357382717,1744029042120,-151.0,0.000359,14]
[357382718,1744029042131,-155.650904,0.000359,14]
[357382719,1744029042141,-151.0,0.000359,14]
[357382720,1744029042151,-151.0,0.000359,14]
[357382721,1744029042161,-252.656165,0.000359,14]
[357382722,1744029042171,-252.656165,0.000359,14]
[357382723,1744029042181,-667.665761,0.000359,14]
[357382724,1744029042191,-667.665761,0.000359,14]
[357382725,1744029042200,-500.0,0.00035973,5]
[357382726,1744029042210,-500.0,0.00035973,5]
[357382727,1744029042221,-502.01197763,0.00035973,5]
[357382728,1744029042230,-613.63380038,0.00035973,5]